[Event "Titled Tuesday Blitz January 31 Late 2023"]
[White "Sailer, Mike"]
[Black "ArchibaldCerveza29"]
[WhiteFideId "2012901"]
[WhiteElo "2109"]
[BlackElo "2532"]
[Result "0-1"]
[Round "03"]
[TimeControl "180+2"]
[Date "2023.01.31"]
[WhiteClock "0:00:02"]
[BlackClock "0:02:06"]

1. d4 {[%clk 0:03:00]}  d5 {[%clk 0:02:59]} 2. Bf4 {[%clk 0:02:54]}  c5 {[%clk 0:02:58]} 3. e3 {[%clk 0:02:51]}  Nc6 {[%clk 0:02:58]} 4. Nc3 {[%clk 0:02:51]}  cxd4 {[%clk 0:02:56]} 5. exd4 {[%clk 0:02:50]}  a6 {[%clk 0:02:51]} 6. Nf3 {[%clk 0:02:48]}  Nf6 {[%clk 0:02:43]} 7. Bd3 {[%clk 0:02:45]}  Bg4 {[%clk 0:02:43]} 8. h3 {[%clk 0:02:46]}  Bxf3 {[%clk 0:02:42]} 9. Qxf3 {[%clk 0:02:36]}  Nxd4 {[%clk 0:02:42]} 10. Qd1 {[%clk 0:02:23]}  Nc6 {[%clk 0:02:41]} 11. O-O {[%clk 0:02:21]}  e6 {[%clk 0:02:42]} 12. Re1 {[%clk 0:02:21]}  Bd6 {[%clk 0:02:41]} 13. Bg5 {[%clk 0:02:20]}  Be7 {[%clk 0:02:41]} 14. a3 {[%clk 0:01:51]}  O-O {[%clk 0:02:37]} 15. b4 {[%clk 0:01:50]}  Rc8 {[%clk 0:02:33]} 16. Ne2 {[%clk 0:01:37]}  h6 {[%clk 0:02:29]} 17. Bh4 {[%clk 0:01:37]}  Ne5 {[%clk 0:02:25]} 18. Nd4 {[%clk 0:01:23]}  Nxd3 {[%clk 0:02:24]} 19. Qxd3 {[%clk 0:01:23]}  Ne4 {[%clk 0:02:22]} 20. Bxe7 {[%clk 0:01:22]}  Qxe7 {[%clk 0:02:23]} 21. f3 {[%clk 0:01:19]}  Nd6 {[%clk 0:02:20]} 22. f4 {[%clk 0:01:13]}  Qf6 {[%clk 0:02:18]} 23. Rf1 {[%clk 0:01:02]}  Ne4 {[%clk 0:02:18]} 24. Rae1 {[%clk 0:00:55]}  Rc3 {[%clk 0:02:17]} 25. Qd1 {[%clk 0:00:55]}  Rfc8 {[%clk 0:02:16]} 26. b5 {[%clk 0:00:33]}  R8c4 {[%clk 0:02:15]} 27. Nb3 {[%clk 0:00:18]}  axb5 {[%clk 0:02:12]} 28. Na5 {[%clk 0:00:16]}  Rc8 {[%clk 0:02:11]} 29. Nxb7 {[%clk 0:00:16]}  Rxc2 {[%clk 0:02:11]} 30. Qd3 {[%clk 0:00:08]}  Qg6 {[%clk 0:02:09]} 31. g4 {[%clk 0:00:06]}  R8c3 {[%clk 0:02:06]} 32. Qxb5 {[%clk 0:00:06]}  Rxh3 {[%clk 0:02:05]} 33. Qe8+ {[%clk 0:00:06]}  Kh7 {[%clk 0:02:06]} 34. g5 {[%clk 0:00:04]}  Rg3+ {[%clk 0:02:05]} 35. Kh1 {[%clk 0:00:02]}  Qh5# {[%clk 0:02:06]} 0-1


[Site "https://www.chess.com"]

[Event "Titled Tuesday Blitz January 31 Late 2023"]
[White "Dobrikov, Marco"]
[Black "Hartikainen, Jarmo"]
[WhiteFideId "12950378"]
[BlackFideId "503134"]
[WhiteElo "2269"]
[BlackElo "2108"]
[Result "1-0"]
[Round "03"]
[TimeControl "180+2"]
[Date "2023.01.31"]
[WhiteClock "0:01:10"]
[BlackClock "0:00:01"]

1. g3 {[%clk 0:03:00]}  g6 {[%clk 0:02:59]} 2. Bg2 {[%clk 0:03:00]}  Bg7 {[%clk 0:02:59]} 3. Nf3 {[%clk 0:03:01]}  Nf6 {[%clk 0:02:59]} 4. O-O {[%clk 0:03:02]}  O-O {[%clk 0:03:00]} 5. d3 {[%clk 0:03:02]}  d5 {[%clk 0:02:59]} 6. Nbd2 {[%clk 0:03:01]}  c6 {[%clk 0:02:58]} 7. c3 {[%clk 0:03:01]}  Nbd7 {[%clk 0:02:58]} 8. Re1 {[%clk 0:03:02]}  e5 {[%clk 0:02:57]} 9. e4 {[%clk 0:03:02]}  Re8 {[%clk 0:02:57]} 10. Qc2 {[%clk 0:03:02]}  b6 {[%clk 0:02:54]} 11. a4 {[%clk 0:03:01]}  a5 {[%clk 0:02:50]} 12. b3 {[%clk 0:02:57]}  Bb7 {[%clk 0:02:50]} 13. Ba3 {[%clk 0:02:57]}  c5 {[%clk 0:02:41]} 14. exd5 {[%clk 0:02:53]}  Nxd5 {[%clk 0:02:41]} 15. Nc4 {[%clk 0:02:52]}  Qc7 {[%clk 0:02:27]} 16. Rad1 {[%clk 0:02:52]}  Rad8 {[%clk 0:02:22]} 17. Bc1 {[%clk 0:02:52]}  h6 {[%clk 0:01:55]} 18. h4 {[%clk 0:02:52]}  N5f6 {[%clk 0:01:46]} 19. Re2 {[%clk 0:02:49]}  Re7 {[%clk 0:01:39]} 20. Rde1 {[%clk 0:02:47]}  Rde8 {[%clk 0:01:39]} 21. Bf4 {[%clk 0:02:34]}  Ng4 {[%clk 0:01:24]} 22. Bd2 {[%clk 0:02:33]}  Ba6 {[%clk 0:01:01]} 23. Nh2 {[%clk 0:02:31]}  Nxh2 {[%clk 0:00:39]} 24. Kxh2 {[%clk 0:02:32]}  Bxc4 {[%clk 0:00:38]} 25. bxc4 {[%clk 0:02:32]}  Qd6 {[%clk 0:00:31]} 26. Rb1 {[%clk 0:02:28]}  Kh7 {[%clk 0:00:29]} 27. Be3 {[%clk 0:02:23]}  f5 {[%clk 0:00:29]} 28. h5 {[%clk 0:02:17]}  g5 {[%clk 0:00:24]} 29. g4 {[%clk 0:01:48]}  f4 {[%clk 0:00:17]} 30. Be4+ {[%clk 0:01:41]}  Kh8 {[%clk 0:00:17]} 31. Bd2 {[%clk 0:01:41]}  Nf6 {[%clk 0:00:17]} 32. Bf5 {[%clk 0:01:41]}  Rb8 {[%clk 0:00:17]} 33. f3 {[%clk 0:01:40]}  Nd7 {[%clk 0:00:17]} 34. Be1 {[%clk 0:01:37]}  Ree8 {[%clk 0:00:14]} 35. Bf2 {[%clk 0:01:36]}  Nf6 {[%clk 0:00:14]} 36. Rb5 {[%clk 0:01:34]}  Nd7 {[%clk 0:00:13]} 37. Qd1 {[%clk 0:01:33]}  Kg8 {[%clk 0:00:13]} 38. Reb2 {[%clk 0:01:33]}  Re7 {[%clk 0:00:11]} 39. Qe2 {[%clk 0:01:33]}  Kf8 {[%clk 0:00:11]} 40. Kg2 {[%clk 0:01:32]}  Rf7 {[%clk 0:00:09]} 41. Qe4 {[%clk 0:01:26]}  Re7 {[%clk 0:00:09]} 42. Bxd7 {[%clk 0:01:13]}  Rxd7 {[%clk 0:00:07]} 43. Bxc5 {[%clk 0:01:12]}  bxc5 {[%clk 0:00:02]} 44. Rxb8+ {[%clk 0:01:12]}  Rd8 {[%clk 0:00:03]} 45. Rxd8+ {[%clk 0:01:12]}  Qxd8 {[%clk 0:00:03]} 46. Qd5 {[%clk 0:01:11]}  Qxd5 {[%clk 0:00:02]} 47. cxd5 {[%clk 0:01:12]}  e4 {[%clk 0:00:02]} 48. dxe4 {[%clk 0:01:10]}  Bxc3 {[%clk 0:00:01]} 49. Rb5 {[%clk 0:01:10]} 1-0


[Site "https://www.chess.com"]

[Event "Titled Tuesday Blitz January 31 Late 2023"]
[White "Ehlvest, Jaan"]
[Black "Rocks, Daniel"]
[WhiteFideId "4500016"]
[BlackFideId "2402408"]
[WhiteElo "2530"]
[BlackElo "2008"]
[Result "1/2-1/2"]
[Round "03"]
[TimeControl "180+2"]
[Date "2023.01.31"]
[WhiteClock "0:00:47"]
[BlackClock "0:00:48"]

1. e4 {[%clk 0:02:56]}  c5 {[%clk 0:02:59]} 2. Nf3 {[%clk 0:02:55]}  d6 {[%clk 0:02:59]} 3. d4 {[%clk 0:02:55]}  cxd4 {[%clk 0:02:59]} 4. Nxd4 {[%clk 0:02:56]}  Nf6 {[%clk 0:02:58]} 5. Nc3 {[%clk 0:02:56]}  g6 {[%clk 0:02:58]} 6. Be3 {[%clk 0:02:54]}  Bg7 {[%clk 0:02:58]} 7. Qd2 {[%clk 0:02:54]}  h5 {[%clk 0:02:57]} 8. f3 {[%clk 0:02:53]}  a6 {[%clk 0:02:57]} 9. O-O-O {[%clk 0:02:50]}  b5 {[%clk 0:02:57]} 10. Kb1 {[%clk 0:02:43]}  Bb7 {[%clk 0:02:57]} 11. Be2 {[%clk 0:02:41]}  Nbd7 {[%clk 0:02:54]} 12. Rhe1 {[%clk 0:02:41]}  Nb6 {[%clk 0:02:37]} 13. Bg5 {[%clk 0:02:29]}  b4 {[%clk 0:02:27]} 14. Nd5 {[%clk 0:02:13]}  Nbxd5 {[%clk 0:02:27]} 15. exd5 {[%clk 0:02:13]}  Bxd5 {[%clk 0:02:27]} 16. Qxb4 {[%clk 0:02:09]}  Rb8 {[%clk 0:02:26]} 17. Qa4+ {[%clk 0:02:08]}  Qd7 {[%clk 0:02:27]} 18. Qxd7+ {[%clk 0:02:04]}  Nxd7 {[%clk 0:02:25]} 19. Bxa6 {[%clk 0:01:57]}  f6 {[%clk 0:01:57]} 20. Bh4 {[%clk 0:01:31]}  Bxa2+ {[%clk 0:01:50]} 21. Kxa2 {[%clk 0:01:26]}  Ra8 {[%clk 0:01:50]} 22. Ne6 {[%clk 0:01:25]}  Rxa6+ {[%clk 0:01:50]} 23. Kb1 {[%clk 0:01:25]}  Kf7 {[%clk 0:01:29]} 24. Nxg7 {[%clk 0:01:23]}  Rha8 {[%clk 0:01:29]} 25. b4 {[%clk 0:01:10]}  Ne5 {[%clk 0:01:27]} 26. c3 {[%clk 0:01:03]}  Nc4 {[%clk 0:01:27]} 27. Kc2 {[%clk 0:01:01]}  Ra2+ {[%clk 0:01:27]} 28. Kb3 {[%clk 0:01:01]}  Nb6 {[%clk 0:00:54]} 29. b5 {[%clk 0:00:47]}  R8a3+ {[%clk 0:00:47]} 30. Kb4 {[%clk 0:00:47]}  Ra4+ {[%clk 0:00:48]} 31. Kb3 {[%clk 0:00:47]} 1/2-1/2


[Site "https://www.chess.com"]

[Event "Titled Tuesday Blitz January 31 Late 2023"]
[White "Bilych, Olexiy"]
[Black "SilverCityIndigo"]
[WhiteFideId "14156504"]
[WhiteElo "2441"]
[BlackElo "2443"]
[Result "1-0"]
[Round "03"]
[TimeControl "180+2"]
[Date "2023.01.31"]
[WhiteClock "0:00:53"]
[BlackClock "0:00:22"]

1. d4 {[%clk 0:03:00]}  Nf6 {[%clk 0:02:58]} 2. c4 {[%clk 0:02:59]}  e6 {[%clk 0:02:58]} 3. Nf3 {[%clk 0:02:59]}  d5 {[%clk 0:02:58]} 4. cxd5 {[%clk 0:02:59]}  exd5 {[%clk 0:02:57]} 5. Nc3 {[%clk 0:02:59]}  Bf5 {[%clk 0:02:57]} 6. Qb3 {[%clk 0:02:58]}  Nc6 {[%clk 0:02:44]} 7. Bg5 {[%clk 0:02:57]}  Na5 {[%clk 0:02:05]} 8. Qa4+ {[%clk 0:02:51]}  c6 {[%clk 0:02:05]} 9. Bxf6 {[%clk 0:02:48]}  gxf6 {[%clk 0:02:05]} 10. e3 {[%clk 0:02:47]}  b5 {[%clk 0:01:59]} 11. Qd1 {[%clk 0:02:21]}  Nc4 {[%clk 0:01:59]} 12. Bxc4 {[%clk 0:02:09]}  bxc4 {[%clk 0:01:58]} 13. O-O {[%clk 0:02:08]}  Qb6 {[%clk 0:01:54]} 14. b3 {[%clk 0:02:08]}  Qa5 {[%clk 0:01:45]} 15. Na4 {[%clk 0:02:06]}  c3 {[%clk 0:01:33]} 16. Rc1 {[%clk 0:02:04]}  c2 {[%clk 0:01:20]} 17. Rxc2 {[%clk 0:01:46]}  Bxc2 {[%clk 0:01:21]} 18. Qxc2 {[%clk 0:01:47]}  Rc8 {[%clk 0:01:20]} 19. Qf5 {[%clk 0:01:44]}  Qd8 {[%clk 0:01:16]} 20. e4 {[%clk 0:01:35]}  Be7 {[%clk 0:01:04]} 21. Re1 {[%clk 0:01:15]}  O-O {[%clk 0:01:01]} 22. Re3 {[%clk 0:00:53]}  dxe4 {[%clk 0:00:41]} 23. Ng5 {[%clk 0:00:53]}  fxg5 {[%clk 0:00:22]} 24. Rh3 {[%clk 0:00:53]} 1-0


[Site "https://www.chess.com"]

[Event "Titled Tuesday Blitz January 31 Late 2023"]
[White "Figorito, Nick"]
[Black "Taboas Rodriguez, Daniel"]
[WhiteFideId "30923689"]
[BlackFideId "2208466"]
[WhiteElo "2036"]
[BlackElo "2371"]
[Result "0-1"]
[Round "03"]
[TimeControl "180+2"]
[Date "2023.01.31"]
[WhiteClock "0:01:12"]
[BlackClock "0:01:29"]

1. Nf3 {[%clk 0:03:00]}  Nf6 {[%clk 0:03:00]} 2. g3 {[%clk 0:03:01]}  b6 {[%clk 0:02:59]} 3. Bg2 {[%clk 0:03:01]}  Bb7 {[%clk 0:03:00]} 4. O-O {[%clk 0:03:02]}  g6 {[%clk 0:03:01]} 5. c4 {[%clk 0:03:02]}  Bg7 {[%clk 0:03:01]} 6. Nc3 {[%clk 0:03:03]}  O-O {[%clk 0:03:02]} 7. d3 {[%clk 0:03:03]}  c5 {[%clk 0:03:01]} 8. Rb1 {[%clk 0:03:03]}  d5 {[%clk 0:03:01]} 9. cxd5 {[%clk 0:03:03]}  Nxd5 {[%clk 0:03:02]} 10. Nxd5 {[%clk 0:03:03]}  Qxd5 {[%clk 0:03:01]} 11. b3 {[%clk 0:03:00]}  Nc6 {[%clk 0:03:00]} 12. Bb2 {[%clk 0:03:00]}  Nd4 {[%clk 0:03:00]} 13. Bxd4 {[%clk 0:02:48]}  Bxd4 {[%clk 0:03:00]} 14. Nh4 {[%clk 0:02:37]}  Qd7 {[%clk 0:02:59]} 15. Bxb7 {[%clk 0:02:37]}  Qxb7 {[%clk 0:03:00]} 16. Nf3 {[%clk 0:02:37]}  Rfd8 {[%clk 0:02:54]} 17. Qc2 {[%clk 0:02:36]}  Bf6 {[%clk 0:02:50]} 18. a4 {[%clk 0:02:32]}  Rd5 {[%clk 0:02:49]} 19. b4 {[%clk 0:02:28]}  cxb4 {[%clk 0:02:40]} 20. Rxb4 {[%clk 0:02:28]}  Rc8 {[%clk 0:02:40]} 21. Rc4 {[%clk 0:02:28]}  Rxc4 {[%clk 0:02:30]} 22. Qxc4 {[%clk 0:02:29]}  Rc5 {[%clk 0:02:30]} 23. Qg4 {[%clk 0:02:20]}  h5 {[%clk 0:02:25]} 24. Qb4 {[%clk 0:02:13]}  Bc3 {[%clk 0:02:22]} 25. Qb3 {[%clk 0:02:11]}  Qc6 {[%clk 0:02:20]} 26. Rc1 {[%clk 0:02:08]}  Bf6 {[%clk 0:02:18]} 27. Rxc5 {[%clk 0:02:07]}  Qxc5 {[%clk 0:02:19]} 28. h4 {[%clk 0:01:45]}  a6 {[%clk 0:02:19]} 29. Kg2 {[%clk 0:01:43]}  b5 {[%clk 0:02:19]} 30. axb5 {[%clk 0:01:43]}  Qxb5 {[%clk 0:02:20]} 31. Qc2 {[%clk 0:01:37]}  a5 {[%clk 0:02:16]} 32. Qc8+ {[%clk 0:01:36]}  Kg7 {[%clk 0:02:16]} 33. Qa8 {[%clk 0:01:35]}  a4 {[%clk 0:02:15]} 34. d4 {[%clk 0:01:34]}  Qb4 {[%clk 0:01:57]} 35. e3 {[%clk 0:01:32]}  a3 {[%clk 0:01:56]} 36. Ne5 {[%clk 0:01:31]}  Bxe5 {[%clk 0:01:51]} 37. dxe5 {[%clk 0:01:32]}  Qb2 {[%clk 0:01:51]} 38. Qa7 {[%clk 0:01:26]}  a2 {[%clk 0:01:37]} 39. Qxe7 {[%clk 0:01:25]}  a1=Q {[%clk 0:01:37]} 40. Qf6+ {[%clk 0:01:25]}  Kg8 {[%clk 0:01:37]} 41. Qd8+ {[%clk 0:01:16]}  Kh7 {[%clk 0:01:37]} 42. Qd7 {[%clk 0:01:12]}  Qa8+ {[%clk 0:01:29]} 0-1


[Site "https://www.chess.com"]

[Event "Titled Tuesday Blitz January 31 Late 2023"]
[White "Dzida, Kamil"]
[Black "Hernandez Sanchez, Elvis De La Caridad"]
[WhiteFideId "21828652"]
[BlackFideId "6400353"]
[WhiteElo "2352"]
[BlackElo "2243"]
[Result "1-0"]
[Round "03"]
[TimeControl "180+2"]
[Date "2023.01.31"]
[WhiteClock "0:00:51"]
[BlackClock "0:00:10"]

1. d4 {[%clk 0:03:00]}  Nf6 {[%clk 0:02:58]} 2. Nf3 {[%clk 0:03:00]}  c5 {[%clk 0:02:55]} 3. d5 {[%clk 0:03:00]}  b5 {[%clk 0:02:54]} 4. Bg5 {[%clk 0:03:00]}  Ne4 {[%clk 0:02:49]} 5. Nbd2 {[%clk 0:02:57]}  Nxg5 {[%clk 0:02:46]} 6. Nxg5 {[%clk 0:02:57]}  d6 {[%clk 0:02:44]} 7. a4 {[%clk 0:02:56]}  bxa4 {[%clk 0:02:38]} 8. e3 {[%clk 0:02:51]}  Nd7 {[%clk 0:02:12]} 9. Bb5 {[%clk 0:02:49]}  e5 {[%clk 0:01:45]} 10. dxe6 {[%clk 0:02:45]}  Qxg5 {[%clk 0:01:44]} 11. Qf3 {[%clk 0:02:35]}  Rb8 {[%clk 0:01:16]} 12. Bxd7+ {[%clk 0:02:14]}  Kd8 {[%clk 0:01:11]} 13. Bxc8 {[%clk 0:02:09]}  Rxc8 {[%clk 0:01:06]} 14. exf7 {[%clk 0:02:08]}  Qf6 {[%clk 0:01:02]} 15. Qxf6+ {[%clk 0:02:06]}  gxf6 {[%clk 0:01:01]} 16. Rxa4 {[%clk 0:02:07]}  Rc7 {[%clk 0:01:01]} 17. O-O {[%clk 0:01:58]}  Rxf7 {[%clk 0:01:01]} 18. Rfa1 {[%clk 0:01:58]}  Rb7 {[%clk 0:00:58]} 19. b3 {[%clk 0:01:53]}  f5 {[%clk 0:00:54]} 20. Rxa7 {[%clk 0:01:50]}  Kc7 {[%clk 0:00:55]} 21. Nc4 {[%clk 0:01:48]}  d5 {[%clk 0:00:43]} 22. Nd2 {[%clk 0:01:16]}  Bg7 {[%clk 0:00:42]} 23. R1a5 {[%clk 0:01:15]}  Bf8 {[%clk 0:00:26]} 24. Nb1 {[%clk 0:01:01]}  Kb6 {[%clk 0:00:23]} 25. R5a6+ {[%clk 0:00:58]}  Kc7 {[%clk 0:00:23]} 26. Nc3 {[%clk 0:00:59]}  Rxa7 {[%clk 0:00:15]} 27. Rxa7+ {[%clk 0:00:59]}  Kd6 {[%clk 0:00:15]} 28. Ra8 {[%clk 0:00:57]}  Bg7 {[%clk 0:00:14]} 29. Rxh8 {[%clk 0:00:55]}  Bxh8 {[%clk 0:00:15]} 30. Ne2 {[%clk 0:00:55]}  d4 {[%clk 0:00:13]} 31. exd4 {[%clk 0:00:54]}  cxd4 {[%clk 0:00:14]} 32. Nc1 {[%clk 0:00:54]}  Kd5 {[%clk 0:00:13]} 33. Nd3 {[%clk 0:00:53]}  Bf6 {[%clk 0:00:14]} 34. Kf1 {[%clk 0:00:51]}  Bd8 {[%clk 0:00:13]} 35. Ke2 {[%clk 0:00:51]}  Bc7 {[%clk 0:00:13]} 36. g3 {[%clk 0:00:51]}  h5 {[%clk 0:00:11]} 37. Kf3 {[%clk 0:00:51]}  Ke6 {[%clk 0:00:11]} 38. Nf4+ {[%clk 0:00:51]}  Kd6 {[%clk 0:00:08]} 39. Nxh5 {[%clk 0:00:51]}  Kc5 {[%clk 0:00:09]} 40. Nf4 {[%clk 0:00:51]}  Kb4 {[%clk 0:00:10]} 41. Nd5+ {[%clk 0:00:51]}  Ka3 {[%clk 0:00:09]} 42. Nxc7 {[%clk 0:00:51]}  Kb2 {[%clk 0:00:10]} 43. Nb5 {[%clk 0:00:51]}  Kxc2 {[%clk 0:00:10]} 44. Nxd4+ {[%clk 0:00:51]} 1-0


[Site "https://www.chess.com"]

[Event "Titled Tuesday Blitz January 31 Late 2023"]
[White "Foerster-Yialamas, Lucas"]
[Black "Veiga, Jose Francisco R P Neves"]
[WhiteFideId "30901774"]
[BlackFideId "1930087"]
[WhiteElo "2151"]
[BlackElo "2406"]
[Result "0-1"]
[Round "03"]
[TimeControl "180+2"]
[Date "2023.01.31"]
[WhiteClock "0:01:12"]
[BlackClock "0:00:22"]

1. Nf3 {[%clk 0:03:00]}  Nc6 {[%clk 0:02:55]} 2. d4 {[%clk 0:03:00]}  d6 {[%clk 0:02:56]} 3. b3 {[%clk 0:02:58]}  g6 {[%clk 0:02:53]} 4. Bb2 {[%clk 0:02:58]}  Bg7 {[%clk 0:02:53]} 5. c4 {[%clk 0:02:57]}  Bg4 {[%clk 0:02:51]} 6. e4 {[%clk 0:02:49]}  e5 {[%clk 0:02:49]} 7. d5 {[%clk 0:02:48]}  Nd4 {[%clk 0:02:45]} 8. Be2 {[%clk 0:02:47]}  Bxf3 {[%clk 0:02:43]} 9. Bxf3 {[%clk 0:02:48]}  c5 {[%clk 0:02:41]} 10. Nc3 {[%clk 0:02:43]}  Nf6 {[%clk 0:02:36]} 11. h4 {[%clk 0:02:39]}  h5 {[%clk 0:02:35]} 12. g3 {[%clk 0:02:37]}  a6 {[%clk 0:02:32]} 13. Qd3 {[%clk 0:02:33]}  Qd7 {[%clk 0:02:15]} 14. Bg2 {[%clk 0:02:31]}  b5 {[%clk 0:02:15]} 15. Bh3 {[%clk 0:02:31]}  Qb7 {[%clk 0:02:13]} 16. Rb1 {[%clk 0:02:29]}  O-O {[%clk 0:02:06]} 17. O-O {[%clk 0:02:15]}  bxc4 {[%clk 0:01:45]} 18. bxc4 {[%clk 0:02:16]}  Qc7 {[%clk 0:01:44]} 19. Bc1 {[%clk 0:02:09]}  Rfb8 {[%clk 0:01:42]} 20. Rxb8+ {[%clk 0:02:01]}  Rxb8 {[%clk 0:01:39]} 21. f4 {[%clk 0:02:02]}  Qa5 {[%clk 0:01:38]} 22. fxe5 {[%clk 0:01:54]}  dxe5 {[%clk 0:00:55]} 23. Kh1 {[%clk 0:01:52]}  Ne8 {[%clk 0:00:54]} 24. g4 {[%clk 0:01:50]}  hxg4 {[%clk 0:00:53]} 25. Bxg4 {[%clk 0:01:51]}  Nd6 {[%clk 0:00:52]} 26. h5 {[%clk 0:01:50]}  gxh5 {[%clk 0:00:51]} 27. Bxh5 {[%clk 0:01:50]}  Qd8 {[%clk 0:00:47]} 28. Qg3 {[%clk 0:01:48]}  Kf8 {[%clk 0:00:40]} 29. Rg1 {[%clk 0:01:48]}  Qf6 {[%clk 0:00:39]} 30. Bg5 {[%clk 0:01:41]}  Nxe4 {[%clk 0:00:32]} 31. Nxe4 {[%clk 0:01:40]}  Qf5 {[%clk 0:00:32]} 32. Nd6 {[%clk 0:01:34]}  Qc2 {[%clk 0:00:28]} 33. Bh6 {[%clk 0:01:23]}  Bxh6 {[%clk 0:00:23]} 34. Qg8+ {[%clk 0:01:23]}  Ke7 {[%clk 0:00:23]} 35. Qxf7+ {[%clk 0:01:24]}  Kxd6 {[%clk 0:00:23]} 36. Rg6+ {[%clk 0:01:25]}  Qxg6 {[%clk 0:00:23]} 37. Qxg6+ {[%clk 0:01:24]}  Kc7 {[%clk 0:00:23]} 38. Qxh6 {[%clk 0:01:25]}  Rb1+ {[%clk 0:00:22]} 39. Kg2 {[%clk 0:01:25]}  Rb2+ {[%clk 0:00:23]} 40. Kg3 {[%clk 0:01:25]}  Nf5+ {[%clk 0:00:23]} 41. Kg4 {[%clk 0:01:12]}  Nxh6+ {[%clk 0:00:24]} 42. Kg5 {[%clk 0:01:13]}  Ng8 {[%clk 0:00:22]} 43. Kf5 {[%clk 0:01:12]}  Kd6 {[%clk 0:00:22]} 0-1


[Site "https://www.chess.com"]

[Event "Titled Tuesday Blitz January 31 Late 2023"]
[White "Viana Da Costa, Fernando"]
[Black "Urbina Quiroz, Edwin"]
[WhiteFideId "2111900"]
[BlackFideId "6500650"]
[WhiteElo "2228"]
[BlackElo "2129"]
[Result "1-0"]
[Round "03"]
[TimeControl "180+2"]
[Date "2023.01.31"]
[WhiteClock "0:02:40"]
[BlackClock "0:01:50"]

1. d4 {[%clk 0:03:00]}  d5 {[%clk 0:02:49]} 2. c4 {[%clk 0:03:00]}  e6 {[%clk 0:02:38]} 3. Nc3 {[%clk 0:03:00]}  Nf6 {[%clk 0:02:37]} 4. Nf3 {[%clk 0:03:00]}  Be7 {[%clk 0:02:37]} 5. Bg5 {[%clk 0:03:01]}  h6 {[%clk 0:02:37]} 6. Bh4 {[%clk 0:03:01]}  O-O {[%clk 0:02:37]} 7. e3 {[%clk 0:03:01]}  b6 {[%clk 0:02:28]} 8. cxd5 {[%clk 0:03:00]}  Nxd5 {[%clk 0:02:27]} 9. Bxe7 {[%clk 0:03:00]}  Qxe7 {[%clk 0:02:28]} 10. Nxd5 {[%clk 0:02:59]}  exd5 {[%clk 0:02:29]} 11. Rc1 {[%clk 0:02:59]}  c5 {[%clk 0:02:29]} 12. dxc5 {[%clk 0:02:57]}  bxc5 {[%clk 0:02:30]} 13. Qxd5 {[%clk 0:02:57]}  Bb7 {[%clk 0:02:18]} 14. Qxc5 {[%clk 0:02:56]}  Qxc5 {[%clk 0:02:18]} 15. Rxc5 {[%clk 0:02:57]}  Nc6 {[%clk 0:02:17]} 16. Ba6 {[%clk 0:02:54]}  Bxa6 {[%clk 0:02:15]} 17. Rxc6 {[%clk 0:02:54]}  Bb5 {[%clk 0:02:15]} 18. Rc5 {[%clk 0:02:54]}  Rab8 {[%clk 0:02:15]} 19. Nd4 {[%clk 0:02:54]}  Bd3 {[%clk 0:02:14]} 20. Kd2 {[%clk 0:02:52]}  Be4 {[%clk 0:02:14]} 21. f3 {[%clk 0:02:48]}  Ba8 {[%clk 0:02:13]} 22. b3 {[%clk 0:02:47]}  Rfd8 {[%clk 0:02:11]} 23. Rhc1 {[%clk 0:02:42]}  g6 {[%clk 0:01:53]} 24. Rc7 {[%clk 0:02:41]}  a5 {[%clk 0:01:50]} 25. Ra7 {[%clk 0:02:40]} 1-0


[Site "https://www.chess.com"]

[Event "Titled Tuesday Blitz January 31 Late 2023"]
[White "Bambino Filho, Antonio Carlos"]
[Black "Vaglio Munoz, Jaime"]
[WhiteFideId "2113163"]
[BlackFideId "6500145"]
[WhiteElo "2144"]
[BlackElo "2174"]
[Result "1-0"]
[Round "03"]
[TimeControl "180+2"]
[Date "2023.01.31"]
[WhiteClock "0:00:25"]
[BlackClock "0:00:03"]

1. d4 {[%clk 0:03:00]}  g6 {[%clk 0:02:56]} 2. e4 {[%clk 0:02:59]}  Bg7 {[%clk 0:02:53]} 3. Nc3 {[%clk 0:02:59]}  d6 {[%clk 0:02:52]} 4. Nf3 {[%clk 0:03:00]}  Nd7 {[%clk 0:02:51]} 5. Be2 {[%clk 0:03:00]}  e5 {[%clk 0:02:50]} 6. O-O {[%clk 0:03:00]}  Ne7 {[%clk 0:02:46]} 7. dxe5 {[%clk 0:02:51]}  dxe5 {[%clk 0:02:44]} 8. Bc4 {[%clk 0:02:51]}  O-O {[%clk 0:02:43]} 9. Be3 {[%clk 0:02:46]}  h6 {[%clk 0:02:35]} 10. Qd2 {[%clk 0:02:41]}  Kh7 {[%clk 0:02:35]} 11. Rad1 {[%clk 0:02:41]}  c6 {[%clk 0:02:30]} 12. a4 {[%clk 0:02:35]}  Qa5 {[%clk 0:02:20]} 13. Qd6 {[%clk 0:02:26]}  Qd8 {[%clk 0:01:37]} 14. Bc5 {[%clk 0:02:14]}  Ng8 {[%clk 0:01:25]} 15. Qd2 {[%clk 0:02:04]}  Ne7 {[%clk 0:01:17]} 16. Qd6 {[%clk 0:01:54]}  Ng8 {[%clk 0:01:15]} 17. h4 {[%clk 0:01:28]}  Qe8 {[%clk 0:01:13]} 18. Ba3 {[%clk 0:01:22]}  Nb6 {[%clk 0:01:04]} 19. Bb3 {[%clk 0:01:22]}  Be6 {[%clk 0:00:56]} 20. a5 {[%clk 0:01:22]}  Bxb3 {[%clk 0:00:54]} 21. cxb3 {[%clk 0:01:20]}  Nc8 {[%clk 0:00:49]} 22. Qc7 {[%clk 0:01:16]}  Nce7 {[%clk 0:00:35]} 23. Rd7 {[%clk 0:01:16]}  Rc8 {[%clk 0:00:23]} 24. Qxb7 {[%clk 0:01:16]}  Bf6 {[%clk 0:00:21]} 25. Rfd1 {[%clk 0:01:09]}  Rb8 {[%clk 0:00:18]} 26. Qxa7 {[%clk 0:01:09]}  Rxb3 {[%clk 0:00:13]} 27. Qc7 {[%clk 0:01:01]}  Qc8 {[%clk 0:00:08]} 28. a6 {[%clk 0:00:31]}  Qxc7 {[%clk 0:00:08]} 29. Rxc7 {[%clk 0:00:32]}  Re8 {[%clk 0:00:07]} 30. Rdd7 {[%clk 0:00:31]}  Rb6 {[%clk 0:00:04]} 31. a7 {[%clk 0:00:31]}  Ra6 {[%clk 0:00:03]} 32. Bc5 {[%clk 0:00:25]} 1-0


[Site "https://www.chess.com"]